fUST/lending_fUST_20250204
["ID","MTS","AMOUNT","RATE_DAILY","PERIOD"]
[351579076,1738638642527,-500.0,0.00016438,2]
[351579077,1738638642536,-501.78516679,0.00016438,2]
[351579078,1738638642545,-500.0,0.00016438,2]
[351579079,1738638642555,-500.0,0.00016438,2]
[351579080,1738638642565,-502.77725692,0.00016438,2]
[351579081,1738638642574,-500.0,0.00016438,2]
[351579082,1738638642584,-501.41306966,0.00016438,2]
[351579083,1738638642594,-612.22024344,0.00016438,2]
[351579084,1738638642605,-500.94592132,0.00016438,2]
[351579085,1738638642615,-505.43,0.00016438,2]
[351579086,1738638642625,-503.27663709,0.00016438,2]
[351579087,1738638642636,-500.0,0.00016438,2]
[351579088,1738638642646,-500.0,0.00016438,2]
[351579089,1738638642655,-500.0,0.00016438,2]
[351579090,1738638642665,-500.0,0.00016438,2]
[351579091,1738638642678,-500.0,0.00016438,2]
[351579092,1738638642688,-501.39598792,0.00016438,2]
[351579093,1738638642698,-504.02487298,0.00016438,2]
[351579094,1738638642708,-500.0,0.00016438,2]
[351579095,1738638642718,-500.0,0.00016438,2]
[351579096,1738638642728,-500.0,0.00016438,2]
[351579097,1738638642740,-593.5475108,0.00016438,2]
[351579098,1738638642749,-501.34697541,0.00016438,2]
[351579099,1738638642762,-500.0,0.00016438,2]
[351579100,1738638642772,-500.0,0.00016438,2]
[351579101,1738638642782,-187.07394903,0.00016438,2]
[351579102,1738638642792,-500.0,0.00016438,2]
[351579103,1738638642802,-510.87135384,0.00016438,2]
[351579104,1738638642812,-500.0,0.00016438,2]
[351579105,1738638642822,-500.0,0.00016438,2]
[351579106,1738638642832,-500.0,0.00016438,2]
[351579107,1738638642841,-500.0,0.00016438,2]
[351579108,1738638642850,-500.0,0.00016438,2]
[351579109,1738638642860,-500.0,0.00016438,2]
[351579110,1738638642870,-500.0,0.00016438,2]
[351579111,1738638642879,-500.0,0.00016438,2]
[351579112,1738638642889,-500.0,0.00016438,2]
[351579113,1738638642899,-500.0,0.00016438,2]
[351579114,1738638642909,-500.9899862,0.00016438,2]
[351579115,1738638642919,-500.0,0.00016438,2]
[351579116,1738638642928,-500.0,0.00016438,2]
[351579117,1738638642938,-507.67003907,0.00016438,2]
[351579118,1738638642947,-507.13419515,0.00016438,2]
[351579119,1738638643075,-358.53247222,0.00016438,2]
[351579120,1738638643086,-501.43006752,0.00016438,2]
[351579121,1738638643096,-500.0,0.00016438,2]
[351579122,1738638643106,-504.96711681,0.00016438,2]
[351579123,1738638643115,-503.99723739,0.00016438,2]
[351579124,1738638643125,-500.0,0.00016438,2]
[351579125,1738638643135,-506.80496597,0.00016438,2]
[351579126,1738638643146,-500.0,0.00016438,2]
[351579127,1738638643156,-500.0,0.00016438,2]
[351579128,1738638643166,-500.0,0.00016438,2]
[351579130,1738638643175,-500.0,0.00016438,2]
[351579132,1738638643185,-505.89393201,0.00016438,2]
[351579133,1738638643196,-503.3131881,0.00016438,2]
[351579134,1738638643205,-500.0,0.00016438,2]
[351579135,1738638643215,-500.0,0.00016438,2]
[351579136,1738638643224,-500.0,0.00016438,2]
[351579138,1738638643234,-500.0,0.00016438,2]
[351579139,1738638643246,-500.0,0.00016438,2]
[351579140,1738638643256,-224.46971283,0.00016438,2]
[351579141,1738638643266,-500.0,0.00016438,2]
[351579142,1738638643276,-500.0,0.00016438,2]
[351579143,1738638643286,-500.0,0.00016438,2]
[351579144,1738638643295,-500.0,0.00016438,2]
[351579145,1738638643305,-500.0,0.00016438,2]
[351579146,1738638643315,-959.97,0.00016438,2]
[351579147,1738638643326,-500.0,0.00016438,2]
[351579148,1738638643337,-463.19831029,0.00016438,2]
[351579149,1738638643347,-509.65449544,0.00016438,2]
[351579150,1738638643357,-500.0,0.00016438,2]
[351579151,1738638643376,-500.0,0.00016438,2]
[351579152,1738638643389,-648.31700471,0.00016438,2]
[351579153,1738638643399,-500.0,0.00016438,2]
[351579154,1738638643410,-500.0,0.00016438,2]
[351579155,1738638643422,-500.0,0.00016438,2]
[351579156,1738638643432,-500.0,0.00016438,2]
[351579157,1738638643442,-500.0,0.00016438,2]
[351579158,1738638643452,-500.0,0.00016438,2]
[351579159,1738638643462,-503.20074739,0.00016438,2]
[351579160,1738638643473,-500.0,0.00016438,2]
[351579161,1738638643483,-500.0,0.00016438,2]
[351579162,1738638643494,-500.0,0.00016438,2]
[351579163,1738638643504,-500.0,0.00016438,2]
[351579164,1738638643514,-500.0,0.00016438,2]
[351579165,1738638643525,-500.0,0.00016438,2]
[351579166,1738638643534,-504.45507927,0.00016438,2]
[351579167,1738638643544,-500.0,0.00016438,2]
[351579168,1738638643556,-500.0,0.00016438,2]
[351579169,1738638643565,-500.0,0.00016438,2]
[351579170,1738638643576,-500.0,0.00016438,2]
[351579171,1738638643585,-200.0,0.00016438,2]
[351579172,1738638643595,-500.0,0.00016438,2]
[351579173,1738638643605,-500.0,0.00016438,2]
[351579174,1738638643615,-500.0,0.00016438,2]
[351579175,1738638643624,-500.0,0.00016438,2]
[351579176,1738638643634,-500.0,0.00016438,2]
[351579177,1738638643645,-500.0,0.00016438,2]
[351579178,1738638643654,-500.0,0.00016438,2]
[351579179,1738638643664,-521.85884608,0.00016438,2]
[351579180,1738638643675,-865.11,0.00016438,2]
[351579181,1738638643690,-508.63158117,0.00016438,2]
[351579182,1738638643700,-500.0,0.00016438,2]
[351579183,1738638643710,-500.0,0.00016438,2]
[351579184,1738638643721,-500.0,0.00016438,2]
[351579185,1738638643730,-503.5967691,0.00016438,2]
[351579186,1738638643740,-500.0,0.00016438,2]
[351579187,1738638643749,-500.0,0.00016438,2]
[351579188,1738638643760,-25969.0,0.00016438,2]
[351579189,1738638643771,-512.2123169,0.00016438,2]
[351579190,1738638643781,-500.0,0.00016438,2]
[351579191,1738638643791,-500.0,0.00016438,2]
[351579192,1738638643801,-496.27072835,0.00016438,2]
[351579193,1738638643810,-500.0,0.00016438,2]
[351579194,1738638643820,-4648.26,0.00016438,2]
[351579195,1738638643829,-500.87630365,0.00016438,2]
[351579196,1738638643839,-500.0,0.00016438,2]
[351579197,1738638643849,-501.90806868,0.00016438,2]
[351579198,1738638643858,-500.0,0.00016438,2]
[351579199,1738638643867,-500.0,0.00016438,2]
[351579200,1738638643877,-500.0,0.00016438,2]
[351579201,1738638643888,-500.0,0.00016438,2]
[351579202,1738638643898,-500.0,0.00016438,2]
[351579203,1738638643908,-500.0,0.00016438,2]
[351579204,1738638643918,-500.0,0.00016438,2]
[351579205,1738638643928,-500.0,0.00016438,2]
[351579206,1738638643938,-500.0,0.00016438,2]
[351579207,1738638643948,-500.0,0.00016438,2]
[351579208,1738638643957,-501.50248079,0.00016438,2]
[351579209,1738638643966,-500.0,0.00016438,2]
[351579210,1738638643976,-500.0,0.00016438,2]
[351579211,1738638643986,-500.0,0.00016438,2]
[351579212,1738638643996,-500.0,0.00016438,2]
[351579213,1738638644006,-500.0,0.00016438,2]
[351579214,1738638644015,-501.87035438,0.00016438,2]
[351579215,1738638644024,-500.0,0.00016438,2]
[351579216,1738638644033,-500.0,0.00016438,2]
[351579217,1738638644043,-500.0,0.00016438,2]
[351579218,1738638644052,-500.0,0.00016438,2]
[351579219,1738638644062,-502.5502977,0.00016438,2]
[351579220,1738638644072,-500.86609483,0.00016438,2]
[351579221,1738638644082,-500.0,0.00016438,2]
[351579222,1738638644091,-500.0,0.00016438,2]
[351579223,1738638644101,-500.0,0.00016438,2]
[351579224,1738638644110,-500.0,0.00016438,2]
[351579225,1738638644119,-500.0,0.00016438,2]
[351579226,1738638644129,-500.0,0.00016438,2]
[351579227,1738638644139,-502.18523439,0.00016438,2]
[351579228,1738638644149,-304.35827491,0.00016438,2]
[351579229,1738638644160,-185.44803579,0.00016438,2]
[351579230,1738638644170,-500.0,0.00016438,2]
[351579231,1738638644180,-500.0,0.00016438,2]
[351579232,1738638644196,-500.0,0.00016438,2]
[351579233,1738638644213,-500.0,0.00016438,2]
[351579234,1738638644223,-500.0,0.00016438,2]
[351579235,1738638644233,-500.0,0.00016438,2]
[351579236,1738638644245,-500.0,0.00016438,2]
[351579237,1738638644255,-559.68631539,0.00016438,2]
[351579238,1738638644267,-500.0,0.00016438,2]
[351579239,1738638644279,-500.0,0.00016438,2]
[351579240,1738638644291,-500.0,0.00016438,2]
[351579241,1738638644301,-500.0,0.00016438,2]
[351579242,1738638644313,-500.0,0.00016438,2]
[351579243,1738638644323,-500.0,0.00016438,2]
[351579244,1738638644334,-501.460534,0.00016438,2]
[351579245,1738638644345,-500.0,0.00016438,2]
[351579246,1738638644355,-502.0473126,0.00016438,2]
[351579247,1738638644367,-501.82668888,0.00016438,2]
[351579248,1738638644377,-500.0,0.00016438,2]
[351579249,1738638644387,-500.0,0.00016438,2]
[351579250,1738638644396,-500.0,0.00016438,2]
[351579251,1738638644408,-840.39,0.00016438,2]
[351579252,1738638644418,-504.44472066,0.00016438,2]
[351579253,1738638644428,-502.65415292,0.00016438,2]
[351579254,1738638644438,-500.0,0.00016438,2]
[351579255,1738638644449,-502.81779413,0.00016438,2]
[351579256,1738638644461,-278.93076945,0.00016438,2]
[351579257,1738638644472,-502.87473744,0.00016438,2]
[351579258,1738638644483,-365.39215376,0.00016438,2]
[351579259,1738638644494,-500.0,0.00016438,2]
[351579260,1738638644505,-500.0,0.00016438,2]
[351579261,1738638644518,-501.75561185,0.00016438,2]
[351579262,1738638644530,-504.95700183,0.00016438,2]
[351579263,1738638644541,-503.30894403,0.00016438,2]
[351579264,1738638644554,-504.40820129,0.00016438,2]
[351579265,1738638644564,-500.0,0.00016438,2]
[351579266,1738638644576,-505.55988272,0.00016438,2]
[351579267,1738638644587,-512.14780931,0.00016438,2]
[351579268,1738638644599,-500.0,0.00016438,2]
[351579269,1738638644609,-504.52410724,0.00016438,2]
[351579270,1738638644619,-500.0,0.00016438,2]
[351579271,1738638644628,-500.0,0.00016438,2]
[351579272,1738638644638,-502.9115628,0.00016438,2]
[351579273,1738638644647,-500.0,0.00016438,2]
[351579274,1738638644657,-500.0,0.00016438,2]
[351579275,1738638644666,-500.0,0.00016438,2]
[351579276,1738638644677,-500.0,0.00016438,2]
[351579277,1738638644692,-151.0,0.00016438,2]
[351579278,1738638644701,-502.5526681,0.00016438,2]
[351579279,1738638644711,-519.86851617,0.00016438,2]
[351579280,1738638644720,-500.0,0.00016438,2]
[351579281,1738638644730,-644.37540945,0.00016438,2]
[351579282,1738638644739,-504.36712151,0.00016438,2]
[351579283,1738638644749,-502.36073837,0.00016438,2]
[351579284,1738638644759,-505.78187464,0.00016438,2]
[351579285,1738638644769,-500.0,0.00016438,2]
[351579286,1738638644779,-301.18142468,0.00016438,2]
[351579287,1738638644788,-502.10503699,0.00016438,2]
[351579288,1738638644797,-500.0,0.00016438,2]
[351579289,1738638644807,-500.0,0.00016438,2]
[351579290,1738638644816,-504.92511442,0.00016438,2]
[351579291,1738638644825,-500.0,0.00016438,2]
[351579292,1738638644834,-500.0,0.00016438,2]
[351579293,1738638644844,-503.47801789,0.00016438,2]
[351579294,1738638644853,-454.07981076,0.00016438,2]
[351579295,1738638644862,-500.0,0.00016438,2]
[351579296,1738638644872,-500.0,0.00016438,2]
[351579297,1738638644881,-500.0,0.00016438,2]
[351579298,1738638644891,-500.0,0.00016438,2]
[351579299,1738638644900,-817.41,0.00016438,2]
[351579300,1738638644910,-505.6163938,0.00016438,2]
[351579301,1738638644919,-501.92538751,0.00016438,2]
[351579302,1738638644929,-506.05736305,0.00016438,2]
[351579303,1738638644938,-500.0,0.00016438,2]
[351579304,1738638644948,-501.70144712,0.00016438,2]
[351579305,1738638644957,-503.95072615,0.00016438,2]
[351579306,1738638644967,-503.75422054,0.00016438,2]
[351579307,1738638644976,-503.30606682,0.00016438,2]
[351579308,1738638644985,-520.12562991,0.00016438,2]
[351579309,1738638644996,-500.0,0.00016438,2]
[351579310,1738638645005,-502.04264711,0.00016438,2]
[351579311,1738638645015,-500.0,0.00016438,2]
[351579312,1738638645026,-501.23925094,0.00016438,2]
[351579313,1738638645035,-504.94000362,0.00016438,2]
[351579314,1738638645044,-500.0,0.00016438,2]
[351579315,1738638645054,-500.0,0.00016438,2]
[351579316,1738638645064,-500.0,0.00016438,2]
[351579317,1738638645073,-500.0,0.00016438,2]
[351579318,1738638645083,-500.0,0.00016438,2]
[351579319,1738638645093,-500.0,0.00016438,2]
[351579320,1738638645103,-502.51670672,0.00016438,2]
[351579321,1738638645112,-500.0,0.00016438,2]
[351579322,1738638645122,-517.21911658,0.00016438,2]
[351579323,1738638645131,-516.08,0.00016438,2]
[351579324,1738638645141,-500.0,0.00016438,2]
[351579325,1738638645150,-505.90998157,0.00016438,2]
[351579326,1738638645160,-512.45586608,0.00016438,2]
[351579327,1738638645170,-507.06391734,0.00016438,2]
[351579328,1738638645180,-500.0,0.00016438,2]
[351579329,1738638645190,-507.67511521,0.00016438,2]
[351579330,1738638645199,-500.0,0.00016438,2]
[351579331,1738638645208,-500.0,0.00016438,2]
[351579332,1738638645218,-525.27,0.00016438,2]
[351579333,1738638645227,-500.0,0.00016438,2]
[351579334,1738638645238,-691.74,0.00016438,2]
[351579335,1738638645248,-691.74,0.00016438,2]
[351579336,1738638645257,-691.74,0.00016438,2]
[351579337,1738638645267,-691.74,0.00016438,2]
[351579338,1738638645276,-882.12,0.00016438,2]
[351579339,1738638645286,-691.74,0.00016438,2]
[351579340,1738638645295,-691.74,0.00016438,2]
[351579341,1738638645305,-691.74,0.00016438,2]
[351579342,1738638645314,-691.74,0.00016438,2]
[351579343,1738638645323,-500.0,0.00016438,5]
[351579344,1738638645333,-691.74,0.00016438,2]
[351579345,1738638645343,-691.74,0.00016438,2]
[351579346,1738638645353,-691.74,0.00016438,2]
[351579347,1738638645364,-691.74,0.00016438,2]
[351579348,1738638645375,-691.74,0.00016438,2]
[351579349,1738638645386,-691.74,0.00016438,2]
[351579350,1738638645397,-691.74,0.00016438,2]
[351579351,1738638645407,-691.74,0.00016438,2]
[351579352,1738638645416,-504.67594544,0.00016438,2]
[351579353,1738638645426,-396.941338,0.00016438,2]
[351579354,1738638645436,-691.74,0.00016438,2]
[351579355,1738638645446,-691.74,0.00016438,2]
[351579356,1738638645456,-407.93738879,0.00016438,2]
[351579357,1738638645465,-691.74,0.00016438,2]
[351579358,1738638645475,-500.0,0.00016438,2]
[351579359,1738638645485,-691.74,0.00016438,2]
[351579360,1738638645496,-691.74,0.00016438,2]
[351579361,1738638645506,-691.74,0.00016438,2]
[351579362,1738638645516,-691.74,0.00016438,2]
[351579363,1738638645526,-691.9508243,0.00016438,2]
[351579364,1738638645535,-396.941338,0.00016438,2]
[351579365,1738638645545,-500.63130117,0.00016438,2]
[351579366,1738638645554,-500.0,0.00016438,2]
[351579367,1738638645564,-1387.04,0.00016438,2]
[351579368,1738638645575,-501.35834269,0.00016438,2]
[351579369,1738638645584,-516.6114918,0.00016438,2]
[351579370,1738638645593,-500.0,0.00016438,2]
[351579371,1738638645603,-506.83354143,0.00016438,2]
[351579372,1738638645614,-500.0,0.00016438,2]
[351579373,1738638645623,-500.0,0.00016438,2]
[351579374,1738638645632,-503.0245434,0.00016438,2]
[351579375,1738638645642,-500.0,0.00016438,2]
[351579376,1738638645650,-500.0,0.00016438,2]
[351579377,1738638645659,-500.0,0.00016438,2]
[351579378,1738638645669,-500.0,0.00016438,2]
[351579379,1738638645678,-500.0,0.00016438,2]
[351579380,1738638645691,-500.0,0.00016438,2]
[351579381,1738638645701,-500.0,0.00016438,2]
[351579382,1738638645710,-500.0,0.00016438,2]
[351579383,1738638645719,-510.00089745,0.00016438,2]
[351579384,1738638645729,-500.0,0.00016438,2]
[351579385,1738638645739,-500.0,0.00016438,2]
[351579386,1738638645748,-8464.67,0.00016438,2]
[351579387,1738638645757,-501.357401,0.00016438,2]
[351579388,1738638645767,-500.0,0.00016438,2]
[351579389,1738638645777,-500.0,0.00016438,2]
[351579390,1738638645786,-500.0,0.00016438,2]
[351579391,1738638645796,-1771.56,0.00016438,2]
[351579392,1738638645804,-516.684198,0.00016438,2]
[351579393,1738638645813,-500.0,0.00016438,2]
[351579394,1738638645823,-502.78581981,0.00016438,2]
[351579395,1738638645833,-1941.69,0.00016438,2]
[351579396,1738638645945,-500.0,0.00016438,2]
[351579397,1738638645955,-500.0,0.00016438,2]
[351579398,1738638645965,-500.0,0.00016438,2]
[351579399,1738638645975,-502.0992507,0.00016438,2]
[351579400,1738638645985,-500.0,0.00016438,2]
[351579401,1738638645995,-500.0,0.00016438,2]
[351579402,1738638646004,-500.0,0.00016438,2]
[351579403,1738638646013,-1144.08,0.00016438,2]
[351579404,1738638646023,-1037.14,0.00016438,2]
[351579405,1738638646032,-246.98781097,0.00016438,2]
[351579406,1738638646042,-501.85774214,0.00016438,2]
[351579407,1738638646052,-484.23557346,0.00016438,2]
[351579408,1738638646062,-500.0,0.00016438,2]
[351579409,1738638646074,-792.78,0.00016438,2]
[351579410,1738638646083,-500.0,0.00016438,2]
[351579411,1738638646093,-500.0,0.00016438,2]
[351579412,1738638646102,-513.78260585,0.00016438,2]
[351579414,1738638646112,-151.0,0.00016438,2]
[351579416,1738638646121,-5348.46,0.00016438,2]
[351579418,1738638646131,-500.0,0.00016438,2]
[351579420,1738638646140,-151.0,0.00016438,2]
[351579421,1738638646149,-151.0,0.00016438,2]
[351579422,1738638646159,-500.0,0.00016438,2]
[351579424,1738638646168,-500.0,0.00016438,2]
[351579425,1738638646178,-500.0,0.00016438,2]
[351579426,1738638646187,-504.8676111,0.00016438,2]
[351579427,1738638646196,-501.66445453,0.00016438,2]
[351579428,1738638646205,-500.6722538,0.00016438,2]
[351579429,1738638646215,-1276.86,0.00016438,2]
[351579431,1738638646224,-500.0,0.00016438,2]
[351579432,1738638646233,-1896.17,0.00016438,2]
[351579433,1738638646243,-2416.1,0.00016438,2]
[351579434,1738638646253,-2340.43,0.00016438,2]
[351579435,1738638646262,-1104.19,0.00016438,2]
[351579436,1738638646271,-500.0,0.00016438,2]
[351579437,1738638646280,-500.0,0.00016438,2]
[351579438,1738638646289,-508.73204745,0.00016438,2]
[351579439,1738638646298,-500.0,0.00016438,2]
[351579440,1738638646307,-2075.76,0.00016438,2]
[351579441,1738638646316,-500.0,0.00016438,2]
[351579442,1738638646326,-512.81881228,0.00016438,2]
[351579444,1738638646335,-1047.43,0.00016438,2]
[351579445,1738638646344,-500.0,0.00016438,2]
[351579446,1738638646353,-500.0,0.00016438,2]
[351579447,1738638646362,-4407.61,0.00016438,2]
[351579448,1738638646371,-500.0,0.00016438,2]
[351579449,1738638646380,-500.0,0.00016438,2]
[351579450,1738638646390,-151.0,0.00016438,2]
[351579451,1738638646399,-151.0,0.00016438,2]
[351579452,1738638646409,-501.63020061,0.00016438,2]
[351579453,1738638646418,-508.02503869,0.00016438,2]
[351579454,1738638646427,-6443.38208797,0.00016438,2]
[351579456,1738638646479,-1527.10791203,0.00016438,2]
[351579458,1738638646489,-511.66982998,0.00016438,2]
[351579459,1738638646498,-500.0,0.00016438,2]
[351579460,1738638646507,-500.0,0.00016438,2]
[351579461,1738638646517,-500.0,0.00016438,2]
[351579462,1738638646526,-500.0,0.00016438,2]
[351579463,1738638646535,-758.38,0.00016438,2]
[351579464,1738638646544,-510.04480186,0.00016438,2]
[351579465,1738638646554,-514.66376375,0.00016438,2]
[351579466,1738638646563,-502.33078458,0.00016438,2]
[351579467,1738638646572,-500.0,0.00016438,2]
[351579468,1738638646583,-500.0,0.00016438,2]
[351579469,1738638646593,-500.0,0.00016438,2]
[351579470,1738638646603,-500.0,0.00016438,2]
[351579471,1738638646613,-861.53,0.00016438,2]
[351579472,1738638646624,-500.0,0.00016438,2]
[351579473,1738638646634,-950.5,0.00016438,2]
[351579474,1738638646643,-500.0,0.00016438,2]
[351579475,1738638646652,-1149.63,0.00016438,2]
[351579476,1738638646664,-465.91482964,0.00016438,2]
[351579477,1738638646674,-21163.98,0.00016438,2]
[351579478,1738638646686,-157.32990489,0.00016438,2]
[351579479,1738638646695,-500.0,0.00016438,2]
[351579480,1738638646705,-500.0,0.00016438,2]
[351579481,1738638646714,-500.0,0.00016438,2]
[351579482,1738638646724,-151.0,0.00016438,2]
[351579483,1738638646733,-151.0,0.00016438,2]
[351579484,1738638646743,-500.0,0.00016438,2]
[351579485,1738638646752,-2095.77,0.00016438,2]
[351579486,1738638646763,-500.0,0.00016438,2]
[351579487,1738638646772,-588.79,0.00016438,2]
[351579488,1738638646781,-500.0,0.00016438,2]
[351579489,1738638646790,-1367.18,0.00016438,2]
[351579490,1738638646800,-503.23678278,0.00016438,2]
[351579491,1738638646809,-500.0,0.00016438,2]
[351579492,1738638646818,-500.0,0.00016438,2]
[351579493,1738638646827,-503.43195473,0.00016438,2]
[351579494,1738638646836,-500.0,0.00016438,2]
[351579495,1738638646846,-334.97371298,0.00016438,2]
[351579496,1738638646855,-1289.37,0.00016438,2]
[351579497,1738638646864,-500.0,0.00016438,2]
[351579498,1738638646873,-781.73,0.00016438,2]
[351579499,1738638646882,-501.53810128,0.00016438,2]
[351579500,1738638646892,-500.0,0.00016438,2]
[351579501,1738638646901,-500.0,0.00016438,2]
[351579503,1738638646910,-2112.01,0.00016438,2]
[351579504,1738638646920,-2112.01,0.00016438,2]
[351579505,1738638646929,-2112.01,0.00016438,2]
[351579506,1738638646939,-1002.74,0.00016438,2]
[351579507,1738638646948,-573.6,0.00016438,2]
[351579508,1738638646958,-2112.01,0.00016438,2]
[351579509,1738638646967,-686.69,0.00016438,2]
[351579510,1738638646976,-2112.01,0.00016438,2]
[351579511,1738638646986,-2112.01,0.00016438,2]
[351579512,1738638646996,-2112.01,0.00016438,2]
[351579513,1738638647006,-500.0,0.00016438,2]
[351579514,1738638647015,-2112.01,0.00016438,2]
[351579515,1738638647024,-2112.01,0.00016438,2]
[351579516,1738638647033,-2112.01,0.00016438,2]
[351579517,1738638647042,-2112.01,0.00016438,2]
[351579518,1738638647052,-2112.01,0.00016438,2]
[351579519,1738638647061,-2112.01,0.00016438,2]
[351579520,1738638647071,-2112.01,0.00016438,2]
[351579521,1738638647082,-2112.01,0.00016438,2]
[351579522,1738638647091,-500.0,0.00016438,2]
[351579523,1738638647101,-2112.01,0.00016438,2]
[351579524,1738638647110,-500.78690807,0.00016438,2]
[351579525,1738638647119,-2112.01,0.00016438,2]
[351579526,1738638647128,-2112.01,0.00016438,2]
[351579527,1738638647138,-2112.01,0.00016438,2]
[351579528,1738638647147,-2112.01,0.00016438,2]
[351579529,1738638647157,-2112.01,0.00016438,2]
[351579530,1738638647166,-501.33174425,0.00016438,2]
[351579531,1738638647176,-2112.01,0.00016438,2]
[351579532,1738638647185,-2112.01,0.00016438,2]
[351579533,1738638647194,-2112.16,0.00016438,2]
[351579534,1738638647204,-510.16134171,0.00016438,2]
[351579535,1738638647214,-500.0,0.00016438,2]
[351579536,1738638647223,-500.0,0.00016438,2]
[351579537,1738638647232,-503.58348132,0.00016438,2]
[351579538,1738638647242,-3093.95,0.00016438,2]
[351579539,1738638647251,-303.92471188,0.00016438,2]
[351579540,1738638647260,-500.0,0.00016438,2]
[351579541,1738638647269,-500.53716093,0.00016438,2]
[351579542,1738638647279,-500.0,0.00016438,2]
[351579543,1738638647289,-500.0,0.00016438,2]
[351579544,1738638647298,-500.90578574,0.00016438,2]
[351579545,1738638647308,-500.62441331,0.00016438,2]
[351579546,1738638647317,-500.0,0.00016438,2]
[351579547,1738638647327,-500.0,0.00016438,2]
[351579548,1738638647336,-500.0,0.00016438,2]
[351579549,1738638647345,-500.0,0.00016438,2]
[351579550,1738638647354,-153.0,0.00016443,2]
[351579551,1738638647364,-153.0,0.00016443,2]
[351579552,1738638647373,-153.0,0.00016443,2]
[351579553,1738638647382,-153.0,0.00016443,2]
[351579554,1738638647392,-153.0,0.00016443,2]
[351579555,1738638647401,-153.0,0.00016443,2]
[351579556,1738638647410,-613.34088859,0.00016473,2]
[351579557,1738638647420,-10679.81443578,0.00016473,2]
[351579558,1738638647429,-537.0,0.00016527,2]
[351579559,1738638647438,-1994.0,0.00016527,2]
[351579560,1738638647448,-2298.0,0.00016527,2]
[351579561,1738638647457,-396.0,0.00016527,2]
[351579562,1738638647467,-500.0,0.00016572,2]
[351579563,1738638647476,-501.96956598,0.00016573,2]
[351579564,1738638647486,-500.8465919,0.00016573,2]
[351579565,1738638647496,-500.0,0.00016573,2]
[351579566,1738638647505,-501.74428487,0.00016573,2]
[351579567,1738638647514,-161.64401515,0.00016573,2]
[351579568,1738638647523,-500.44606751,0.00016573,2]
[351579569,1738638647532,-500.0,0.00016573,2]
[351579570,1738638647542,-502.85829694,0.00016573,2]
[351579571,1738638647551,-307.85071275,0.00016573,2]
[351579572,1738638647560,-500.0,0.00016573,2]
[351579573,1738638647569,-500.0,0.00016573,2]
[351579574,1738638647579,-500.0,0.00016573,2]
[351579575,1738638647588,-500.0,0.00016573,2]
[351579576,1738638647600,-500.0,0.00016573,2]
[351579577,1738638647610,-457.44699786,0.00016573,2]
[351579578,1738638647619,-11866.72474666,0.00016575,5]
[351579579,1738638647629,-507.76692511,0.00016575,2]
[351579580,1738638647646,-500.0,0.00016575,2]
[351579581,1738638647667,-500.0,0.00016575,2]
[351579582,1738638647680,-500.0,0.00016575,2]
[351579583,1738638647696,-500.0,0.00016575,2]
[351579584,1738638647708,-248.49001543,0.00016575,2]
[351579585,1738638647719,-504.33861382,0.00016575,2]
[351579586,1738638647732,-554.432884,0.00016575,2]
[351579587,1738638647744,-501.28561336,0.00016575,2]
[351579588,1738638647753,-502.53106967,0.00016575,2]